Cogmind - Beta 9.3 @@@ ROGUE MODE // 2020.01.05 @ 01:13:32 // Winter2019/RPGLIKE Player: Rumbl3 Result: Destroyed 0B10! Performance ------------- Evolutions (9) 4500 Regions Visited (29) 5800 Robots Destroyed (302) 1510 Value Destroyed (13799) 13799 Prototype IDs (63) 1260 Alien Tech Used (5) 1000 Bonus (16459) 16459 TOTAL SCORE: 44328 Bonus ------- High Alert Combat Kills 2275 Follower Combat Kills 1929 Network Hubs Disabled 400 Met Data Miner 300 Met Imprinter 300 Met Zhirov 300 Built Enhanced Grunts 300 Met R17 at Cetus 500 Met R17 at Research 2000 Scanned by Researcher 500 Met Sigix 2000 Escaped with Sigix 5000 Win 3000 Friendly Fire -2345 Cogmind --------- Core Integrity 488/1250 Matter 106/300 Energy 296/365 System Corruption 4% Temperature Cool (6) Movement Flying (25) Location Tau Ceti IV Orbit Parts ------- > --- POWER (2) -------- Micro Fission Core Fusion Reactor > --- PROPULSION (3) --- Experimental Cesium-ion Thruster Cooled Field Propulsion Drive Cooled Field Propulsion Drive > --- UTILITY (13) ----- Advanced Heat Sink Experimental Sensor Array Advanced Signal Interpreter Advanced Terrain Scanner Advanced Targeting Computer Experimental Targeting Computer Advanced Target Analyzer Advanced Core Analyzer Armor Integrity Analyzer Improved Kinecellerator Reaction Control System Improved Phase Shifter Improved Cloaking Device > --- WEAPON (5) ------- Improved KE Penetrator Improved KE Penetrator Improved KE Penetrator Sigix Broadsword > --- INVENTORY (8) ---- Transdimensional Reconstructor HERF Cannon Shock Bomb Launcher Hellfire Missile Launcher Improved Remote Datajack Sigix Containment Pod Peak State ------------ > --- POWER ------------ Micro Fission Core Fusion Reactor > --- PROPULSION ------- Cooled Field Propulsion Drive Impulse Thruster Array > --- UTILITY ---------- Advanced Heat Sink Experimental Sensor Array Advanced Signal Interpreter Advanced Terrain Scanner Advanced Targeting Computer Experimental Targeting Computer Advanced Target Analyzer Advanced Core Analyzer Armor Integrity Analyzer Improved Kinecellerator Reaction Control System Improved Phase Shifter Improved Cloaking Device > --- WEAPON ----------- Improved KE Penetrator Improved KE Penetrator Improved KE Penetrator Sigix Broadsword > --- INVENTORY -------- Protomatter Transdimensional Reconstructor HERF Cannon Shock Bomb Launcher Hellfire Missile Launcher Improved Remote Datajack Sigix Containment Pod [Rating: 165] Favorites ----------- Power Improved Deuterium Engine Engine Improved Deuterium Engine Power Core Micro Fission Core Reactor Fusion Reactor Propulsion Xenon Bombardment Thruster Leg Aluminum Leg Wheel Wheel Hover Unit Hover Unit Flight Unit Xenon Bombardment Thruster Utility Advanced Targeting Computer Device Experimental Sensor Array Processor Advanced Targeting Computer Protection Hardened Light Armor Plating Weapon Hypervelocity Gauss Rifle Energy Gun Particle Gun Energy Cannon EM Pulse Cannon Ballistic Gun Hypervelocity Gauss Rifle Launcher Shock Bomb Launcher Special Weapon Remote Datajack Slashing Weapon Phasing Sabre Piercing Weapon Enhanced Force Lance Build | -11 -10 -10 -9 -9 -8 -7 -7 -7 -7 -6 -6 -6 -6 -6 -5 -5 -5 -5 -5 -4 -4 -4 -4 -4 -4 -3 -3 -2 -1 ------- Run | Scr Mat Min Mat Min Mat Fac Low Low Dat Pro Fac Low Low Zio Pro Fac Upp Upp Zhi Pro Fac Ext Cet Arc Hub Res Qua Res Acc Slots Evolved 18 | 3 . 1 . 2 1 . 2 . . 1 1 . 1 . . 1 . . . 1 1 . . . . . 2 . 1 Power 1 | . . . . 1 . . . . . . . . . . . . . . . . . . . . . . . . . Propulsion 2 | 1 . . . . . . . . . . . . 1 . . . . . . . . . . . . . . . . Utility 12 | 1 . 1 . 1 . . 2 . . 1 1 . . . . 1 . . . 1 1 . . . . . 1 . 1 Weapon 3 | 1 . . . . 1 . . . . . . . . . . . . . . . . . . . . . 1 . . Parts Attached 171 | 5 2 6 6 7 17 . 14 4 . 6 6 8 5 2 6 4 7 3 5 7 5 6 9 . . 7 9 . 15 Power 12 | . 1 2 1 1 2 . 2 . . . . . . . . 1 . . 2 . . . . . . . . . . Engine 9 | . 1 2 1 1 2 . 2 . . . . . . . . . . . . . . . . . . . . . . Core 2 | . . . . . . . . . . . . . . . . 1 . . 1 . . . . . . . . . . Reactor 1 | . . . . . . . . . . . . . . . . . . . 1 . . . . . . . . . . Propulsion 24 | 2 . 1 1 2 5 . 1 . . . . 2 2 1 . 1 1 . . . 1 . . . . 1 . . 3 Treads . | . . . . . . . . . . . . . . . . . . . . . . . . . . . . . . Leg . | . . . . . . . . . . . . . . . . . . . . . . . . . . . . . . Wheel 3 | 2 . 1 . . . . . . . . . . . . . . . . . . . . . . . . . . . Hover 4 | . . . 1 . 2 . . . . . . 1 . . . . . . . . . . . . . . . . . Flight 17 | . . . . 2 3 . 1 . . . . 1 2 1 . 1 1 . . . 1 . . . . 1 . . 3 Utility 46 | 2 1 2 . 3 6 . 3 . . 4 2 1 2 . . 1 1 . 1 1 1 . . . . 3 6 . 6 Device 32 | 1 1 1 . 1 5 . 1 . . 3 1 1 1 . . 1 1 . 1 . 1 . . . . 2 5 . 5 Storage . | . . . . . . . . . . . . . . . . . . . . . . . . . . . . . . Processor 13 | 1 . 1 . 1 1 . 2 . . 1 1 . 1 . . . . . . 1 . . . . . 1 1 . 1 Hackware . | . . . . . . . . . . . . . . . . . . . . . . . . . . . . . . Protection 1 | . . . . 1 . . . . . . . . . . . . . . . . . . . . . . . . . Artifact . | . . . . . . . . . . . . . . . . . . . . . . . . . . . . . . Weapon 89 | 1 . 1 4 1 4 . 8 4 . 2 4 5 1 1 6 1 5 3 2 6 3 6 9 . . 3 3 . 6 Energy Gun 11 | 1 . 1 2 1 2 . 2 1 . . . . . . . . . . . . . . 1 . . . . . . Energy Cannon 6 | . . . . . 1 . 2 1 . . . . . . . . . . . . . 1 . . . . . . 1 Ballistic Gun 15 | . . . . . . . . . . . 3 1 . 1 . . 1 . . . 1 1 4 . . . . . 3 Ballistic Cannon . | . . . . . . . . . . . . . . . . . . . . . . . . . . . . . . Launcher 28 | . . . 2 . . . 2 2 . 1 . 3 . . 4 . 2 2 1 4 1 1 2 . . . . . 1 Special Weapon 4 | . . . . . . . . . . . . . 1 . . . . . 1 . . . . . . 1 1 . . Impact Weapon . | . . . . . . . . . . . . . . . . . . . . . . . . . . . . . . Slashing Weapon 21 | . . . . . . . 2 . . 1 1 1 . . 2 1 2 1 . 2 1 3 2 . . . 1 . 1 Piercing Weapon 4 | . . . . . 1 . . . . . . . . . . . . . . . . . . . . 2 1 . . Special Melee Weapon . | . . . . . . . . . . . . . . . . . . . . . . . . . . . . . . Unidentified Prototypes 13 | . . . . 1 . . . . . . . 1 . . . . . . 2 . . . 2 . . 1 4 . 2 Parts Lost . | . . . . . . . . . . . . . . . . . . . . . . . . . . . . . . Power . | . . . . . . . . . . . . . . . . . . . . . . . . . . . . . . Propulsion . | . . . . . . . . . . . . . . . . . . . . . . . . . . . . . . Utility . | . . . . . . . . . . . . . . . . . . . . . . . . . . . . . . Weapon . | . . . . . . . . . . . . . . . . . . . . . . . . . . . . . . Highest Loss Streak . | . . . . . . . . . . . . . . . . . . . . . . . . . . . . . . Average Slot Usage (%) 98 | . 100 100 100 99 100 100 99 100 100 99 100 95 98 100 100 100 100 100 100 100 100 100 100 100 100 95 92 90 92 Engine 8 | . 14 12 12 15 19 18 16 15 15 14 13 12 11 11 11 6 5 5 1 . . . . . . . . . . Core 2 | . . . . . . . . . . . . . . . . 3 5 5 5 5 5 5 5 5 5 5 4 4 4 Reactor 1 | . . . . . . . . . . . . . . . . . . . 3 5 5 5 5 5 5 5 4 4 4 Wheel 2 | . 28 25 12 5 . . . . . . . . . . . . . . . . . . . . . . . . . Flight 12 | . . . . 10 18 18 16 15 15 14 13 12 15 17 17 16 16 16 16 15 15 15 15 15 15 10 9 9 11 Device 25 | . 17 34 25 22 19 18 18 23 23 23 31 25 23 23 23 26 27 27 27 26 26 30 30 30 30 30 27 27 28 Processor 21 | . 10 2 12 11 18 18 22 23 23 22 21 25 23 23 23 22 22 22 22 24 25 25 25 25 25 25 26 27 26 Energy Gun 3 | . 14 12 11 10 9 9 4 7 7 . . . . . . . . . . . . . . . . . . . . Ballistic Gun 12 | . 14 12 12 10 9 9 8 7 7 7 12 12 11 11 17 16 15 16 16 15 15 15 15 15 15 15 13 13 12 Launcher 2 | . . . . . . . 1 3 7 10 . 4 5 5 4 1 1 4 . 4 3 3 4 . . . . . . Slashing Weapon 1 | . . . . . . . 3 . . 3 5 1 . . . 3 3 . 3 . 1 1 . 5 5 2 1 4 4 Naked Turns . | . . . . . . . . . . . . . . . . . . . . . . . . . . . . . . Heaviest Build 64 | 10 11 13 14 25 25 25 30 30 30 32 37 36 39 42 42 48 48 48 50 50 51 51 52 50 50 54 56 56 64 Greatest Support 69 | 25 25 25 25 29 31 31 32 32 32 32 37 37 45 48 48 48 52 52 52 52 53 53 53 53 53 64 64 64 69 Greatest Overweight (x) 1 | . . . . 1 . . 1 1 . . 1 . 1 . . . . . . . . 1 . . . . . 1 1 Average Overweight (x) . | . . . . . . . . . . . . . . . . . . . . . . . . . . . . . . Largest Inventory Capacity 8 | 2 2 3 3 4 6 6 6 6 6 6 7 7 7 7 7 7 7 7 8 8 8 8 8 8 8 8 8 8 8 Average Capacity 6 | 1 2 2 3 3 5 6 6 6 6 6 6 7 7 7 7 7 7 7 7 8 8 8 8 8 8 8 8 8 8 Most Carried 8 | 1 2 3 3 4 6 5 6 6 6 6 7 7 7 7 7 7 7 7 8 8 8 8 8 8 8 8 8 8 8 Average Carried 6 | . 1 2 2 3 5 5 5 6 6 5 6 6 6 7 7 7 7 7 7 7 8 7 8 8 7 7 7 7 7 Final Capacity 8 | 2 2 3 3 4 6 6 6 6 6 6 7 7 7 7 7 7 7 7 8 8 8 8 8 8 8 8 8 8 8 Final Carried 8 | 1 2 3 2 4 5 5 6 6 6 6 7 7 7 7 7 7 7 7 8 8 8 8 8 8 8 8 8 8 7 Class Distribution -------------------- 35% | Scavenger-Scout 19% | Hauler-Scout 14% | Derelict-Scout 7% | Commander-Scout 6% | Scout 4% | Scavenger-Skirmisher 4% | Scavenger-Ninja 3% | Mutant Dominant Class ---------------- Mutant | -10/Materials Scavenger-Skirmisher | -10/Mines Scavenger-Scout | -9/Materials Scout | -9/Mines Scout | -8/Materials Scout | -7/Factory Scavenger-Scout | -7/Lower Caves Scavenger-Scout | -7/Lower Caves Scavenger-Scout | -7/Data Miner Scavenger-Scout | -6/Proximity Caves Scavenger-Scout | -6/Factory Hauler-Scout | -6/Lower Caves Derelict-Scout | -6/Lower Caves Derelict-Scout | -6/Zion Derelict-Scout | -5/Proximity Caves Derelict-Scout | -5/Factory Hauler-Scout | -5/Upper Caves Hauler-Scout | -5/Upper Caves Hauler-Scout | -5/Zhirov Hauler-Scout | -4/Proximity Caves Hauler-Scout | -4/Factory Hauler-Scout | -4/Extension Commander-Scout | -4/Cetus Commander-Scout | -4/Archives Commander-Scout | -4/Hub_04(d) Scavenger-Scout | -3/Research Scavenger-Scout | -3/Quarantine Scavenger-Scout | -2/Research Scavenger-Ninja | -1/Access Resources | -11 -10 -10 -9 -9 -8 -7 -7 -7 -7 -6 -6 -6 -6 -6 -5 -5 -5 -5 -5 -4 -4 -4 -4 -4 -4 -3 -3 -2 -1 ----------- Run | Scr Mat Min Mat Min Mat Fac Low Low Dat Pro Fac Low Low Zio Pro Fac Upp Upp Zhi Pro Fac Ext Cet Arc Hub Res Qua Res Acc Matter Collected 7855 | 295 113 161 289 106 235 . 391 161 . 95 235 547 132 45 936 140 301 464 105 296 219 756 526 . 285 231 332 . 459 Remotely . | . . . . . . . . . . . . . . . . . . . . . . . . . . . . . . Salvage Created 12887 | 148 350 196 613 126 648 . 545 254 . 245 225 955 147 . 1009 156 508 702 274 962 441 980 915 141 607 273 436 . 1031 Parts 764 | 16 23 17 37 14 40 . 25 23 . 3 24 43 22 . 63 9 41 36 3 37 26 86 45 6 22 25 20 . 58 Haulers Intercepted 5 | . 1 . 1 . . . . . . . 1 . . . . . . . . . . . . . 1 1 . . . Recyclers Shooed 2 | . . . 1 . . . . . . . . . . . . . . . . . . . . . . . . . 1 Parts Field Recycled . | . . . . . . . . . . . . . . . . . . . . . . . . . . . . . . Retrieved Matter . | . . . . . . . . . . . . . . . . . . . . . . . . . . . . . . Parts Self-Destructed 206 | . . . . . . . 4 19 . 2 . 28 9 . 51 . 34 21 2 36 . . . . . . . . . Prevented 57 | . . . . . . . 5 10 . 4 . 9 4 . 12 . 5 7 . 1 . . . . . . . . . Kills | -11 -10 -10 -9 -9 -8 -7 -7 -7 -7 -6 -6 -6 -6 -6 -5 -5 -5 -5 -5 -4 -4 -4 -4 -4 -4 -3 -3 -2 -1 ------- Run | Scr Mat Min Mat Min Mat Fac Low Low Dat Pro Fac Low Low Zio Pro Fac Upp Upp Zhi Pro Fac Ext Cet Arc Hub Res Qua Res Acc Combat Hostiles Destroyed 249 | . 7 8 16 5 13 . 16 10 . 2 5 15 7 . 24 2 15 14 . 10 7 21 15 2 9 5 3 . 18 Melee 2 | . . . . . . . . . . . . 1 . . . . . 1 . . . . . . . . . . . Guns 186 | . 7 8 13 5 10 . 4 5 . . 5 11 4 . 15 2 9 8 . 6 6 20 15 2 9 5 3 . 14 Cannons 11 | . . . . . 3 . 5 . . . . . . . . . . . . . . . . . . . . . 3 AOE 50 | . . . 3 . . . 7 5 . 2 . 3 3 . 9 . 6 5 . 4 1 1 . . . . . . 1 Classes Destroyed 21 | 2 3 2 2 . 1 . 3 1 . . . 1 . . 1 1 . . . 1 . . . . 1 . 1 . 1 Worker 7 | . 2 . . 3 . . . . . . . . . . . . . . . . . . . . . . . . 2 Builder 1 | . . . . . . . . . . . . . . . . . . . . . . . . . . . . . 1 Tunneler 5 | 5 . . . . . . . . . . . . . . . . . . . . . . . . . . . . . Hauler 5 | . 1 . 1 . . . . . . . 1 . . . . . . . . . . . . . 1 1 . . . Recycler 3 | 1 . . 1 . . . . . . . . . . . . . . . . . . . . . . . . . 1 Carrier 1 | . . . . . . . . . . . . . . . . . . . . 1 . . . . . . . . . Operator 2 | . . . . . . . . . . . . . . . . 1 . . . . . . . . . . 1 . . Drone 13 | . . . . . . . . . . . . . . . . . . . . . . . . . 5 . . . 8 Watcher 17 | . . . 3 . 2 . . . . . . . . . . . . . . . . 2 1 . 2 1 3 . 3 Swarmer 49 | . . 3 3 4 4 . 4 . . 2 . . . . 9 . 4 5 . 5 . 4 . . 2 . . . . Grunt 100 | . 7 4 7 1 2 . 3 5 . . . 10 7 . 8 1 9 7 . 1 4 9 8 . 4 . 3 . . Brawler 9 | . . . 1 . . . 1 2 . . . 1 . . 3 . . 1 . . . . . . . . . . . Duelist 4 | . . . . . . . . 1 . . . 1 . . 1 . . . . . . 1 . . . . . . . Researcher 2 | . . . . . . . . . . . . . . . . . . . . . . . . . . . 2 . . Sentry 39 | . . 1 5 . 6 . . 1 . . 3 1 . . 2 1 . 1 . . 1 5 . 2 2 5 . . 3 Specialist 1 | . . . . . . . . 1 . . . . . . . . . . . . . . . . . . . . . Hunter 14 | . . . . . 1 . . . . . 1 . . . . . 1 . . 4 2 . 1 . 1 . . . 3 Programmer 8 | . . . . . . . 1 . . . 1 . . . . . 1 . . . . 1 . . . . . . 4 Behemoth 2 | . . . . . . . . . . . . . . . 1 . . . . . . 1 . . . . . . . Cetus Guard 6 | . . . . . . . . . . . . . . . . . . . . . . . 6 . . . . . . Enhanced Grunt 2 | . . . . . . . . . . . 1 . . . . . . . . . . . . . 1 . . . . Thug 6 | . . . . . . . 4 . . . . 1 . . . . . . . . . 1 . . . . . . . Savage 1 | . . . . . . . 1 . . . . . . . . . . . . . . . . . . . . . . Butcher 1 | . . . . . . . 1 . . . . . . . . . . . . . . . . . . . . . . Guerrilla 1 | . . . . . . . . . . . . . . . . . . . . . . . . . 1 . . . . Fireman 1 | . . . . . . . . . . . . 1 . . . . . . . . . . . . . . . . . Mutant 2 | . . . . . . . 2 . . . . . . . . . . . . . . . . . . . . . . Best Kill Streak 9 | 4 7 3 4 3 6 . 4 4 . 2 2 5 3 . 7 1 8 6 . 7 6 7 6 2 9 1 5 . 5 Combat Bots Only 8 | . 5 3 4 3 6 . 4 4 . 2 2 5 3 . 7 1 8 6 . 7 6 6 6 2 8 1 3 . 4 Max Kills in Single Turn 5 | 1 1 2 2 1 2 . 3 2 . 1 2 2 3 . 4 1 2 2 . 3 2 3 2 1 5 1 1 . 2 Gunslinging 1 | . . 1 . . . . . 1 . . . . . . . . 1 1 . . . 1 1 . . . . . . Exploded 3 | . . . 2 . . . 3 2 . 1 . 1 3 . 3 . 2 2 . 2 1 1 . . . . . . 1 Melee 1 | . . . . . . . . . . . . 1 . . . . . 1 . . . . . . . . . . . Uniques/NPCs Destroyed . | . . . . . . . . . . . . . . . . . . . . . . . . . . . . . . Combat | -11 -10 -10 -9 -9 -8 -7 -7 -7 -7 -6 -6 -6 -6 -6 -5 -5 -5 -5 -5 -4 -4 -4 -4 -4 -4 -3 -3 -2 -1 -------- Run | Scr Mat Min Mat Min Mat Fac Low Low Dat Pro Fac Low Low Zio Pro Fac Upp Upp Zhi Pro Fac Ext Cet Arc Hub Res Qua Res Acc Damage Taken 11673 | . 471 329 618 67 371 13 806 269 . 74 428 385 310 . 941 264 444 296 . 304 272 876 540 56 917 180 230 . 2212 Core 9465 | . 390 269 507 54 311 10 662 219 . 64 348 304 265 . 773 212 353 246 . 244 216 708 423 43 748 146 183 . 1767 Absorbed by Shields 286 | . . . . . . . . . . . . . . . . . . . . . . 37 241 8 . . . . . Redirected to Core 7725 | . 260 202 356 34 215 10 503 179 . 34 288 265 166 . 607 191 334 168 . 206 193 592 390 43 622 121 162 . 1584 Core Remaining (%) 85 | 100 . 79 . 97 100 . . . . 100 . . . . 100 . . . . 100 . . . . 40 . 85 100 39 Volleys Fired 662 | 15 33 37 70 11 35 . 42 26 . 9 22 42 14 3 46 10 21 20 3 10 11 47 30 5 20 15 18 2 45 Largest 4 | 2 2 2 2 2 3 . 3 3 . 1 3 3 3 1 4 4 4 4 1 4 4 4 4 3 3 3 3 3 3 Hottest 158 | 70 70 85 85 89 152 . 158 158 . 36 99 102 102 30 135 135 135 135 40 135 135 135 139 105 105 105 105 105 123 Shots Fired 1662 | 30 66 72 128 22 84 . 97 56 . 9 47 86 33 3 154 31 61 66 3 37 35 151 97 15 60 41 49 6 123 Gun 1454 | 30 66 72 125 22 69 . 63 44 . 5 47 68 24 . 120 30 51 54 . 30 27 133 90 15 60 39 48 6 116 Cannon 48 | . . . . . 15 . 26 1 . . . . . . . . . . . . . . . . . . . . 6 Launcher 151 | . . . 3 . . . 8 11 . 4 . 18 9 . 34 1 10 12 . 7 8 18 7 . . . . . 1 Special 9 | . . . . . . . . . . . . . . 3 . . . . 3 . . . . . . 2 1 . . Kinetic 1218 | 15 33 37 61 11 35 . 41 22 . 5 47 68 24 . 120 30 51 54 . 30 27 133 90 15 60 39 48 6 116 Thermal 236 | 15 33 35 64 11 34 . 22 22 . . . . . . . . . . . . . . . . . . . . . Explosive 16 | . . . 3 . . . 8 . . . . . . . . . 2 3 . . . . . . . . . . . Electromagnetic 183 | . . . . . 15 . 26 12 . 4 . 18 9 . 34 1 8 9 . 7 8 18 7 . . . . . 7 Robot Hit Streak 27 | 7 9 13 16 13 8 . 10 13 . 8 9 16 14 2 15 8 9 8 4 8 14 14 27 11 17 12 16 1 19 Robot Miss Streak 5 | 2 3 4 4 3 3 . 3 2 . 2 2 3 4 1 5 2 2 3 . 2 1 3 1 2 1 2 2 4 4 Penetration Max 3 | . . . . . . . . . . . 2 1 2 . 2 . 1 1 . 1 1 3 2 . 1 1 1 . 1 Secondary Targets 31 | . 2 4 1 . . . . 1 . . 1 2 . . 1 . 2 1 . . . 2 5 1 4 . . . 4 Max Gunslinging Chain 1 | . 1 1 1 . . . . 1 . . 1 1 . . 1 . 1 1 . . . 1 1 1 1 . . . 1 Shots Hit Robots 1141 | 19 45 46 89 13 54 . 72 43 . 7 36 52 19 2 102 21 42 41 8 27 20 94 78 12 46 27 31 1 94 Core Hits 662 | 6 18 16 33 8 26 . 43 28 . 4 14 46 15 . 58 9 34 33 2 23 23 59 50 5 32 13 16 . 48 Critical Hits 279 | . . . . . 1 . . . . . 18 19 9 . 42 6 17 20 2 9 10 43 28 3 17 6 2 . 27 Critical Kills 109 | . . . . . . . . . . . 6 9 3 . 12 3 8 8 1 7 6 17 9 1 4 3 1 . 11 Critical Parts Destroyed 148 | . . . . . 1 . . . . . 12 10 6 . 22 3 9 12 1 2 4 20 17 . 13 3 1 . 12 Melee Attacks 180 | . . . . . . . 6 . . 7 5 3 . . 5 5 3 4 5 7 9 5 11 8 6 21 21 11 38 Impact . | . . . . . . . . . . . . . . . . . . . . . . . . . . . . . . Slashing 153 | . . . . . . . 6 . . 7 5 3 . . 5 5 3 4 5 7 9 5 11 8 6 8 7 11 38 Piercing 27 | . . . . . . . . . . . . . . . . . . . . . . . . . . 13 14 . . Sneak Attacks 3 | . . . . . . . 1 . . . . . . . . . . . . . . . . . . 1 . . 1 Combat Hostiles . | . . . . . . . . . . . . . . . . . . . . . . . . . . . . . . Follow-up Attacks . | . . . . . . . . . . . . . . . . . . . . . . . . . . . . . . Damage Inflicted 30177 | 266 552 637 1475 254 943 . 2233 1319 . 621 315 1040 465 . 2095 157 828 1054 646 1098 700 1918 2437 411 3201 839 1076 . 3597 Guns 17842 | 266 552 637 1263 254 761 . 636 591 . 37 315 336 149 . 637 140 298 259 . 101 215 1360 2040 411 1899 733 1001 . 2951 Cannons 948 | . . . . . 182 . 486 22 . . . . . . . . . . . . . . . . . . . . 258 Explosions 8582 | . . . 212 . . . 751 706 . 213 . 654 316 . 1458 17 530 744 . 141 485 558 397 . 1302 . . . 98 Melee 2786 | . . . . . . . 360 . . 371 . 50 . . . . . 51 646 856 . . . . . 106 56 . 290 Ramming 19 | . . . . . . . . . . . . . . . . . . . . . . . . . . . 19 . . Kinetic 14787 | 130 228 278 458 74 245 . 306 186 . 37 315 336 149 . 637 140 298 259 . 101 215 1360 2040 411 1899 733 1001 . 2951 Thermal 4495 | 136 324 359 805 180 516 . 372 571 . . . 138 136 . 451 . . 186 . . 250 . 71 . . . . . . Explosive 1531 | . . . 212 . . . 709 . . . . . . . . . 272 320 . . . . . . . . . . 18 Electromagnetic 6559 | . . . . . 182 . 486 562 . 213 . 516 180 . 1007 17 258 238 . 141 235 558 326 . 1302 . . . 338 Impact . | . . . . . . . . . . . . . . . . . . . . . . . . . . . . . . Slashing 2680 | . . . . . . . 360 . . 371 . 50 . . . . . 51 646 856 . . . . . . 56 . 290 Piercing 106 | . . . . . . . . . . . . . . . . . . . . . . . . . . 106 . . . Highest Corruption 6 | . 1 1 . . . . 1 1 1 1 1 2 2 2 . . . . . . . . . . 6 2 2 . 4 Average Corruption 1 | . 1 1 . . . . 1 1 1 1 1 1 2 2 . . . . . . . . . . 4 2 2 . 1 Corruption Purged . | . . . . . . . . . . . . . . . . . . . . . . . . . . . . . . Effects 34 | . . . . . . . 4 1 1 1 . 6 3 1 . . . . . . . . . . 2 2 6 . 7 Message Errors 10 | . . . . . . . 1 1 1 . . 1 1 . . . . . . . . . . . . 2 2 . 1 Matter Fused 1 | . . . . . . . . . . . . . . . . . . . . . . . . . . . . . 1 Heat Flow Errors 4 | . . . . . . . . . . . . . 1 . . . . . . . . . . . 1 . 1 . 1 Energy Discharges 6 | . . . . . . . 2 . . . . 1 1 . . . . . . . . . . . . . 1 . 1 Data Loss (minor) 7 | . . . . . . . 1 . . 1 . 2 . 1 . . . . . . . . . . . . 1 . 1 Targeting Errors 5 | . . . . . . . . . . . . 2 . . . . . . . . . . . . 1 . 1 . 1 Weapon Failures 1 | . . . . . . . . . . . . . . . . . . . . . . . . . . . . . 1 Overload Shots . | . . . . . . . . . . . . . . . . . . . . . . . . . . . . . . Overflow Damage 1073 | . . . 15 . 1 . 64 8 . 228 . . . . 18 . 22 . 91 315 . . . . 287 . 4 . 20 Projectiles 13 | . . . . . 1 . . . . . . . . . . . . . . . . . . . . . . . 12 Explosions 358 | . . . 15 . . . . 8 . . . . . . 18 . 22 . . . . . . . 287 . . . 8 Melee 702 | . . . . . . . 64 . . 228 . . . . . . . . 91 315 . . . . . . 4 . . Knockbacks . | . . . . . . . . . . . . . . . . . . . . . . . . . . . . . . Impact . | . . . . . . . . . . . . . . . . . . . . . . . . . . . . . . Kinetic . | . . . . . . . . . . . . . . . . . . . . . . . . . . . . . . Secondary . | . . . . . . . . . . . . . . . . . . . . . . . . . . . . . . Self-Inflicted Damage 374 | . . . . . . . 67 . . . . 47 9 . 42 . 13 . . . . . 2 . 185 . 9 . . Shots 15 | . . . . . . . 2 . . . . 4 1 . 4 . 1 . . . . . 1 . 2 . . . . Rammed 2 | . . . . . . . . . . . . . . . . . . . . . . . . . . . 2 . . Targets Rammed 2 | . . . . . . . . . . . . . . . . . . . . . . . . . . . 2 . . Kicked . | . . . . . . . . . . . . . . . . . . . . . . . . . . . . . . Crushed . | . . . . . . . . . . . . . . . . . . . . . . . . . . . . . . Highest Temperature 514 | 90 237 123 429 108 514 . 323 125 . . 18 40 131 5 298 63 132 138 . 6 . 27 27 . 171 . 93 . 259 Average Temperature 98 | 38 85 56 154 56 152 . 131 42 . . 7 11 38 3 94 25 71 46 . 6 . 7 6 . 94 . 53 . 136 Received Heat Transfer 2253 | . 264 120 252 . 117 9 135 90 . . 183 279 123 . 168 48 120 63 . . 12 118 74 9 9 9 33 . 18 Effects 14 | . . . 5 . 6 . . . . . . . . . 3 . . . . . . . . . . . . . . Shutdowns 6 | . . . 2 . 4 . . . . . . . . . . . . . . . . . . . . . . . . Energy Bleed 1 | . . . . . . . . . . . . . . . 1 . . . . . . . . . . . . . . Interference 5 | . . . 3 . . . . . . . . . . . 2 . . . . . . . . . . . . . . Short Circuit 2 | . . . . . 2 . . . . . . . . . . . . . . . . . . . . . . . . Siege Activations . | . . . . . . . . . . . . . . . . . . . . . . . . . . . . . . Robots Corrupted 3 | . . . . . . . . . . . . . . . . . . . . . . . . . 3 . . . . Combat Hostiles . | . . . . . . . . . . . . . . . . . . . . . . . . . . . . . . Parts Fried 21 | . . . . . . . 2 . . 1 . 2 1 . 1 . 2 . . . 1 4 . . 7 . . . . Impact Corruptions 1 | . . . . . . . . . . . . . . . . . . . . . . . . . . . 1 . . Robots Melted . | . . . . . . . . . . . . . . . . . . . . . . . . . . . . . . Combat Hostiles . | . . . . . . . . . . . . . . . . . . . . . . . . . . . . . . Parts Melted 7 | 1 . . . . 1 . . . . . 1 . 1 . . . . 1 . . . . . . . . 2 . . Heat Transferred 8208 | 407 962 888 1887 370 999 . 642 803 . . . 150 100 . 500 . . 150 . . 300 . 50 . . . . . . Parts Sabotaged . | . . . . . . . . . . . . . . . . . . . . . . . . . . . . . . Parts Stolen . | . . . . . . . . . . . . . . . . . . . . . . . . . . . . . . Parts Stripped . | . . . . . . . . . . . . . . . . . . . . . . . . . . . . . . Power Chain Reactions 27 | . . . . . . . 1 2 . . . 2 3 . 8 . 2 2 . 2 3 1 1 . . . . . . Missiles Intercepted . | . . . . . . . . . . . . . . . . . . . . . . . . . . . . . . Alert | -11 -10 -10 -9 -9 -8 -7 -7 -7 -7 -6 -6 -6 -6 -6 -5 -5 -5 -5 -5 -4 -4 -4 -4 -4 -4 -3 -3 -2 -1 ------- Run | Scr Mat Min Mat Min Mat Fac Low Low Dat Pro Fac Low Low Zio Pro Fac Upp Upp Zhi Pro Fac Ext Cet Arc Hub Res Qua Res Acc Peak Influence 1713 | 30 285 256 498 307 586 266 . . . . 520 . . . . 397 . . . . 417 815 1466 834 1713 1049 636 231 897 Average Influence 450 | 13 140 160 275 249 324 266 . . . . 350 . . . . 358 . . . . 244 480 1058 776 1222 851 456 172 488 Maximum Alert Level 5 | . 1 1 2 1 2 1 . . . . 2 . . . . 1 . . . . 2 3 4 3 5 3 2 1 3 Low Security (%) 22 | 100 73 71 23 2 30 . . . . . 27 . . . . . . . . . 52 11 . . . . 2 42 10 Level 1 33 | . 26 28 62 97 30 100 . . . . 17 . . . . 100 . . . . 33 25 . . 11 . 24 57 28 Level 2 24 | . . . 13 . 39 . . . . . 55 . . . . . . . . . 13 40 24 18 8 14 73 . 47 Level 3 13 | . . . . . . . . . . . . . . . . . . . . . . 21 19 81 7 85 . . 13 Level 4 4 | . . . . . . . . . . . . . . . . . . . . . . . 55 . 35 . . . . Level 5 1 | . . . . . . . . . . . . . . . . . . . . . . . . . 36 . . . . High Security . | . . . . . . . . . . . . . . . . . . . . . . . . . . . . . . Max Security . | . . . . . . . . . . . . . . . . . . . . . . . . . . . . . . Squads Dispatched 42 | . 4 . 2 1 1 . . 1 . . 6 . . . 1 2 . . . . 4 3 2 . 7 1 3 . 4 Investigation 18 | . 3 . 1 1 . . . . . . 1 . . . . 2 . . . . 4 1 2 . 1 . 1 . 1 Extermination 2 | . . . . . . . . . . . 1 . . . . . . . . . . . . . . . . . 1 Reinforcement 13 | . 1 . 1 . 1 . . . . . 1 . . . . . . . . . . 1 . . 5 1 1 . 1 Assault 5 | . . . . . . . . 1 . . . . . . 1 . . . . . . 1 . . . . 1 . 1 Garrison 4 | . . . . . . . . . . . 3 . . . . . . . . . . . . . 1 . . . . Intercept . | . . . . . . . . . . . . . . . . . . . . . . . . . . . . . . Construction Impeded 3 | . . . . . . . . . . . . . . . . . . . . . . 1 . . 1 . . . 1 Haulers Reinforced 1 | . . . . . . . . . . . . . . . . . . . . . . . . . 1 . . . . Stealth | -11 -10 -10 -9 -9 -8 -7 -7 -7 -7 -6 -6 -6 -6 -6 -5 -5 -5 -5 -5 -4 -4 -4 -4 -4 -4 -3 -3 -2 -1 --------- Run | Scr Mat Min Mat Min Mat Fac Low Low Dat Pro Fac Low Low Zio Pro Fac Upp Upp Zhi Pro Fac Ext Cet Arc Hub Res Qua Res Acc Distress Signals 18 | . 1 . 2 . 2 . . . . . . . . . . . . . . . . 3 2 . 3 1 1 . 3 Communications Jammed . | . . . . . . . . . . . . . . . . . . . . . . . . . . . . . . Distress Signals . | . . . . . . . . . . . . . . . . . . . . . . . . . . . . . . Times Spotted 391 | . 15 9 26 6 22 2 16 14 . 4 10 15 7 . 34 5 12 16 . 5 13 32 24 4 45 8 13 1 33 Peak Tracking Total 17 | . 8 2 5 4 5 2 4 6 . 4 5 4 4 . 10 3 4 5 . 4 5 6 10 3 17 1 4 1 8 Tactical Retreats 34 | . 3 . 6 1 2 . . 2 . 1 1 3 1 . 3 1 . 3 . . 1 1 . . 2 . . . 3 Traps | -11 -10 -10 -9 -9 -8 -7 -7 -7 -7 -6 -6 -6 -6 -6 -5 -5 -5 -5 -5 -4 -4 -4 -4 -4 -4 -3 -3 -2 -1 ------- Run | Scr Mat Min Mat Min Mat Fac Low Low Dat Pro Fac Low Low Zio Pro Fac Upp Upp Zhi Pro Fac Ext Cet Arc Hub Res Qua Res Acc Traps Triggered 8 | . 1 . . . 2 . . . . . 1 . . . . . . . . . . 3 . . . . . . 1 Indirectly 4 | . . . . . . . . . . . . . . . . . . . . . . 3 . . . . . . 1 Trap Hack Attempts . | . . . . . . . . . . . . . . . . . . . . . . . . . . . . . . Triggered . | . . . . . . . . . . . . . . . . . . . . . . . . . . . . . . Disarmed . | . . . . . . . . . . . . . . . . . . . . . . . . . . . . . . Reprogrammed 6 | . . . . . . . . . . . . . . . . . . . . . . 6 . . . . . . . Reused . | . . . . . . . . . . . . . . . . . . . . . . . . . . . . . . Traps Extracted . | . . . . . . . . . . . . . . . . . . . . . . . . . . . . . . Installed . | . . . . . . . . . . . . . . . . . . . . . . . . . . . . . . Triggered . | . . . . . . . . . . . . . . . . . . . . . . . . . . . . . . Machines | -11 -10 -10 -9 -9 -8 -7 -7 -7 -7 -6 -6 -6 -6 -6 -5 -5 -5 -5 -5 -4 -4 -4 -4 -4 -4 -3 -3 -2 -1 ---------- Run | Scr Mat Min Mat Min Mat Fac Low Low Dat Pro Fac Low Low Zio Pro Fac Upp Upp Zhi Pro Fac Ext Cet Arc Hub Res Qua Res Acc Machines Disabled 44 | . . . 1 . . . 1 1 . . . . . . 2 . . . . . . 8 . 3 12 . 9 1 6 Max in Single Turn 6 | . . . 1 . . . 1 1 . . . . . . 2 . . . . . . 2 . 1 6 . 1 1 1 Garrison Access 6 | . . . . . 1 . . . . . . . . . . 1 . . . . . . . . 2 . . 1 1 Network Hub 2 | . . . . . . . . . . . . . . . . . . . . . . . . . 2 . . . . Energy Cycler 2 | . . . . . . . . . . . . . . . . . . . . . . 2 . . . . . . . Machines Sabotaged . | . . . . . . . . . . . . . . . . . . . . . . . . . . . . . . Garrisons Compromised . | . . . . . . . . . . . . . . . . . . . . . . . . . . . . . . Overloaded Fab Kills . | . . . . . . . . . . . . . . . . . . . . . . . . . . . . . . Fab Network Shutdowns . | . . . . . . . . . . . . . . . . . . . . . . . . . . . . . . Hacking | -11 -10 -10 -9 -9 -8 -7 -7 -7 -7 -6 -6 -6 -6 -6 -5 -5 -5 -5 -5 -4 -4 -4 -4 -4 -4 -3 -3 -2 -1 --------- Run | Scr Mat Min Mat Min Mat Fac Low Low Dat Pro Fac Low Low Zio Pro Fac Upp Upp Zhi Pro Fac Ext Cet Arc Hub Res Qua Res Acc Machines Accessed 97 | . 5 . 3 1 4 . 2 . 4 . 3 1 1 . . 5 . . 5 1 4 15 3 1 4 10 10 4 11 Terminals 59 | . 4 . 3 . 2 . . . . . 1 . 1 . . 2 . . . 1 2 14 3 . 2 8 9 1 6 Fabricators 6 | . . . . . . . . . . . 1 . . . . 1 . . . . 1 . . . . 1 . 1 1 Repair Stations 3 | . . . . . . . . . . . . . . . . 1 . . . . . . . . . . 1 . 1 Recycling Units 6 | . 1 . . . 1 . . . . . . . . . . . . . . . . 1 . . . 1 . 1 1 Scanalyzers . | . . . . . . . . . . . . . . . . . . . . . . . . . . . . . . Garrison Access 9 | . . . . . 1 . . . . . 1 . . . . 1 . . . . 1 . . . 2 . . 1 2 Total Hacks 396 | . 19 . 10 1 14 . 3 . 28 . 13 4 1 . . 12 . . 18 1 14 49 10 1 11 53 69 19 46 Successful 216 | . 13 . 4 1 8 . 3 . 28 . 7 4 1 . . 6 . . 18 1 7 28 2 1 6 19 38 10 11 Failed 177 | . 6 . 6 . 6 . . . . . 6 . . . . 6 . . . . 6 20 8 . 5 34 30 9 35 Catastrophic 40 | . . . 1 . . . . . . . . . . . . . . . . . 2 4 1 . 3 9 5 2 13 Database Lockouts 4 | . . . . . . . . . . . . . . . . . . . . . 1 2 . . . . 1 . . Manual 220 | . 16 . 9 . 9 . . . . . 10 . . . . 9 . . . . 9 33 4 . 6 34 42 7 32 Terminals 269 | . 17 . 10 . 9 . . . . . 4 . 1 . . 7 . . . 1 9 48 10 . 8 44 67 7 27 Fabricators 26 | . . . . . . . . . . . 5 . . . . 3 . . . . 2 . . . . 6 . 6 4 Repair Stations 6 | . . . . . . . . . . . . . . . . 1 . . . . . . . . . . 2 . 3 Recycling Units 17 | . 2 . . . 3 . . . . . . . . . . . . . . . . 1 . . . 3 . 3 5 Scanalyzers . | . . . . . . . . . . . . . . . . . . . . . . . . . . . . . . Garrison Access 23 | . . . . . 2 . . . . . 4 . . . . 1 . . . . 3 . . . 3 . . 3 7 Terminal Hacks 127 | . 6 . 1 1 1 . 3 . 28 . 1 4 1 . . . . . 18 1 4 18 2 1 1 6 27 2 1 Record 30 | . . . . . . . 2 . 11 . . 4 1 . . . . . 6 1 . . 2 1 . . 2 . . Part Schematic 13 | . . . . . . . . . 9 . . . . . . . . . 4 . . . . . . . . . . Robot Schematic 5 | . . . . . . . . . 5 . . . . . . . . . . . . . . . . . . . . Robot Analysis 4 | . . . . . . . . . . . . . . . . . . . 4 . . . . . . . . . . Prototype ID Bank 19 | . 2 . . . . . . . 3 . . . . . . . . . 4 . 3 2 . . . 1 4 . . Open Door 3 | . . . . 1 . . 1 . . . . . . . . . . . . . . 1 . . . . . . . Level Access Points 2 | . . . . . . . . . . . . . . . . . . . . . . . . . . . 1 . 1 Branch Access Points 6 | . 1 . . . 1 . . . . . . . . . . . . . . . 1 . . . 1 1 1 . . Machine Index 2 | . . . . . . . . . . . . . . . . . . . . . . . . . . . 1 1 . Terminal Index 1 | . . . . . . . . . . . . . . . . . . . . . . 1 . . . . . . . Alert Level 14 | . 1 . 1 . . . . . . . . . . . . . . . . . . 3 . . . 2 6 1 . Unreport Threat 12 | . 1 . . . . . . . . . . . . . . . . . . . . 3 . . . 2 6 . . Locate Traps 6 | . . . . . . . . . . . 1 . . . . . . . . . . 3 . . . . 2 . . Reprogram Traps 1 | . . . . . . . . . . . . . . . . . . . . . . 1 . . . . . . . Investigation Status 1 | . . . . . . . . . . . . . . . . . . . . . . 1 . . . . . . . Recall Investigation 1 | . . . . . . . . . . . . . . . . . . . . . . 1 . . . . . . . Recall Extermination 2 | . . . . . . . . . . . . . . . . . . . . . . . . . . . 2 . . Recall Assault 1 | . . . . . . . . . . . . . . . . . . . . . . 1 . . . . . . . Registered Prototypes 2 | . . . . . . . . . . . . . . . . . . . . . . 1 . . . . 1 . . Zone Layout 2 | . 1 . . . . . . . . . . . . . . . . . . . . . . . . . 1 . . Fabricator Hacks 12 | . . . . . . . . . . . 2 . . . . 2 . . . . 1 . . . . 3 . 2 2 Load Schematic 7 | . . . . . . . . . . . 1 . . . . 1 . . . . 1 . . . . 2 . 1 1 Build 5 | . . . . . . . . . . . 1 . . . . 1 . . . . . . . . . 1 . 1 1 Repair Station Hacks . | . . . . . . . . . . . . . . . . . . . . . . . . . . . . . . Recycling Unit Hacks 6 | . 1 . . . 2 . . . . . . . . . . . . . . . . . . . . 1 . 1 1 Report Inventory 5 | . 1 . . . 1 . . . . . . . . . . . . . . . . . . . . 1 . 1 1 Retrieve Components 1 | . . . . . 1 . . . . . . . . . . . . . . . . . . . . . . . . Scanalyzer . | . . . . . . . . . . . . . . . . . . . . . . . . . . . . . . Garrison Access Hacks 6 | . . . . . 1 . . . . . . . . . . 1 . . . . . . . . 2 . . 1 1 Seal Access 6 | . . . . . 1 . . . . . . . . . . 1 . . . . . . . . 2 . . 1 1 Unauthorized Hacks 177 | . 14 . 8 . 11 . . . . . 14 . . . . 12 . . . . 4 21 . . 7 28 24 10 24 Terminals 54 | . 5 . 3 . 4 . . . . . 1 . . . . 2 . . . . 2 9 . . 3 8 10 2 5 Track 6 | . 1 . . . 1 . . . . . . . . . . . . . . . . . . . 1 . 3 . . Assimilate 7 | . . . . . . . . . . . . . . . . 1 . . . . 1 1 . . . 3 . . 1 Botnet 25 | . 2 . 2 . 1 . . . . . . . . . . 1 . . . . . 6 . . 1 4 4 1 3 Detonate 4 | . 1 . . . 1 . . . . . 1 . . . . . . . . . . . . . . . 1 . . Disrupt 2 | . . . . . . . . . . . . . . . . . . . . . . 1 . . . . 1 . . Operators 9 | . 1 . 1 . 1 . . . . . . . . . . . . . . . . 1 . . 1 1 1 1 1 Search 1 | . . . . . . . . . . . . . . . . . . . . . 1 . . . . . . . . Fabricators 2 | . . . . . . . . . . . 1 . . . . . . . . . . . . . . . . 1 . Prioritize 1 | . . . . . . . . . . . 1 . . . . . . . . . . . . . . . . . . Siphon 1 | . . . . . . . . . . . . . . . . . . . . . . . . . . . . 1 . Repair Stations 3 | . . . . . . . . . . . . . . . . 1 . . . . . . . . . . 1 . 1 Mechanics 3 | . . . . . . . . . . . . . . . . 1 . . . . . . . . . . 1 . 1 Recycling Units 4 | . 1 . . . . . . . . . . . . . . . . . . . . 1 . . . 1 . 1 . Mask 3 | . . . . . . . . . . . . . . . . . . . . . . 1 . . . 1 . 1 . Tunnel 1 | . 1 . . . . . . . . . . . . . . . . . . . . . . . . . . . . Scanalyzers . | . . . . . . . . . . . . . . . . . . . . . . . . . . . . . . Garrison Access 2 | . . . . . . . . . . . 2 . . . . . . . . . . . . . . . . . . Reprogram 2 | . . . . . . . . . . . 2 . . . . . . . . . . . . . . . . . . Data Cores Recovered 1 | . . . . . . . . . . . . . . . . . . . . . . . . . . . 1 . . Used . | . . . . . . . . . . . . . . . . . . . . . . . . . . . . . . Hacking Detections 72 | . 5 . 3 . 3 . . . . . 3 . . . . 3 . . . . 4 14 3 . 3 10 9 2 10 Full Trace Events 11 | . 1 . 1 . . . . . . . 1 . . . . 2 . . . . 2 . 2 . 1 . . . 1 Feedback Events 2 | . 1 . . . . . . . . . . . . . . . . . . . . . . . . . . . 1 Corruption 2 | . 1 . . . . . . . . . . . . . . . . . . . . . . . . . . . 1 Feedback Blocked . | . . . . . . . . . . . . . . . . . . . . . . . . . . . . . . Robot Schematics Acquired 5 | . . . . . . . . . 5 . . . . . . . . . . . . . . . . . . . . Robots Built . | . . . . . . . . . . . . . . . . . . . . . . . . . . . . . . Matter . | . . . . . . . . . . . . . . . . . . . . . . . . . . . . . . Time . | . . . . . . . . . . . . . . . . . . . . . . . . . . . . . . Total Robot Build Rating . | . . . . . . . . . . . . . . . . . . . . . . . . . . . . . . Part Schematics Acquired 13 | . . . . . . . . . 9 . . . . . . . . . 4 . . . . . . . . . . Parts Built 3 | . . . . . . . . . . . . . . . . 1 . . . . . . . . . 1 . . 1 Matter 1524 | . . . . . . . . . . . 285 . . . . 318 . . . . . . . . . 285 . 285 351 Time 424 | . . . . . . . . . . . 152 . . . . 84 . . . . . . . . . 50 . 76 62 Total Part Build Rating 18 | . . . . . . . . . . . . . . . . 6 . . . . . . . . . 5 . . 7 Parts Repaired . | . . . . . . . . . . . . . . . . . . . . . . . . . . . . . . Time . | . . . . . . . . . . . . . . . . . . . . . . . . . . . . . . Parts Recycled . | . . . . . . . . . . . . . . . . . . . . . . . . . . . . . . Recycled Matter . | . . . . . . . . . . . . . . . . . . . . . . . . . . . . . . Retrieved Matter . | . . . . . . . . . . . . . . . . . . . . . . . . . . . . . . Retrieved Components 2 | . . . . . 2 . . . . . . . . . . . . . . . . . . . . . . . . Parts Scanalyzed . | . . . . . . . . . . . . . . . . . . . . . . . . . . . . . . Part Schematics Acquired . | . . . . . . . . . . . . . . . . . . . . . . . . . . . . . . Parts Damaged . | . . . . . . . . . . . . . . . . . . . . . . . . . . . . . . Bothacking | -11 -10 -10 -9 -9 -8 -7 -7 -7 -7 -6 -6 -6 -6 -6 -5 -5 -5 -5 -5 -4 -4 -4 -4 -4 -4 -3 -3 -2 -1 ------------ Run | Scr Mat Min Mat Min Mat Fac Low Low Dat Pro Fac Low Low Zio Pro Fac Upp Upp Zhi Pro Fac Ext Cet Arc Hub Res Qua Res Acc Used RIF Installer . | . . . . . . . . . . . . . . . . . . . . . . . . . . . . . . Robots Hacked 9 | . . . . . . . . . . . . . . 3 . . . . 3 . . . . . . 2 1 . . Non-combat 2 | . . . . . . . . . . . . . . 2 . . . . . . . . . . . . . . . Combat 7 | . . . . . . . . . . . . . . 1 . . . . 3 . . . . . . 2 1 . . Robot Hacks Applied 9 | . . . . . . . . . . . . . . 3 . . . . 3 . . . . . . 2 1 . . parse_system 9 | . . . . . . . . . . . . . . 3 . . . . 3 . . . . . . 2 1 . . Relay Couplers Released . | . . . . . . . . . . . . . . . . . . . . . . . . . . . . . . Robots Rewired 17 | . . . . . . . 4 1 . . . . . . 2 . . . . . . 10 . . . . . . . Allies Hacked . | . . . . . . . . . . . . . . . . . . . . . . . . . . . . . . Hacks Repelled . | . . . . . . . . . . . . . . . . . . . . . . . . . . . . . . Allies | -11 -10 -10 -9 -9 -8 -7 -7 -7 -7 -6 -6 -6 -6 -6 -5 -5 -5 -5 -5 -4 -4 -4 -4 -4 -4 -3 -3 -2 -1 -------- Run | Scr Mat Min Mat Min Mat Fac Low Low Dat Pro Fac Low Low Zio Pro Fac Upp Upp Zhi Pro Fac Ext Cet Arc Hub Res Qua Res Acc Total Allies 41 | . . . . 2 . . 4 1 . 1 2 . . . 2 1 . . . . 1 18 5 . . 3 . . 1 Largest Group 18 | . . . . 2 2 . 4 5 . 1 2 1 . . 2 1 1 1 1 . 1 16 18 17 15 2 2 . 1 Highest-Rated Group 1105 | . . . . 47 47 . 101 121 . 94 94 32 . . 57 10 9 9 9 . 26 738 1105 968 873 52 52 . 44 Highest-Rated Ally 144 | . . . . 31 31 . 31 31 . 94 94 32 . . 29 10 9 9 9 . 26 144 137 94 94 26 26 . 44 Total Orders 60 | . . . . . . . 1 2 . . . . . . . 9 6 6 . 6 4 8 . . 4 4 2 . 8 STAY 3 | . . . . . . . . . . . . . . . . . 1 1 . 1 . . . . . . . . . GOTO 30 | . . . . . . . 1 2 . . . . . . . 5 3 3 . 2 2 5 . . 1 2 1 . 3 FOLLOW 15 | . . . . . . . . . . . . . . . . 1 2 2 . 2 1 3 . . . 2 1 . 1 EXPLORE 9 | . . . . . . . . . . . . . . . . 1 . . . . 1 . . . 3 . . . 4 RETURN 3 | . . . . . . . . . . . . . . . . 2 . . . 1 . . . . . . . . . Ally Attacks 342 | . . . . 1 2 . . 30 . 9 21 2 . . 44 . . . . . . 60 56 13 90 . . . 14 Total Damage 9521 | . . . . 20 21 . . 729 . 235 774 113 . . 650 . . . . . . 1363 1680 296 3389 . . . 251 Kills 51 | . . . . 1 . . . 5 . 2 6 . . . 4 . . . . . . 6 9 2 16 . . . . Allies Corrupted 6 | . . . . . . . . . . . . . . . . . . . . . . . . . 6 . . . . Allies Melted . | . . . . . . . . . . . . . . . . . . . . . . . . . . . . . . Intel | -11 -10 -10 -9 -9 -8 -7 -7 -7 -7 -6 -6 -6 -6 -6 -5 -5 -5 -5 -5 -4 -4 -4 -4 -4 -4 -3 -3 -2 -1 ------- Run | Scr Mat Min Mat Min Mat Fac Low Low Dat Pro Fac Low Low Zio Pro Fac Upp Upp Zhi Pro Fac Ext Cet Arc Hub Res Qua Res Acc Robot Analysis Total 4 | . . . . . . . . . . . . . . . . . . . 4 . . . . . . . . . . Derelict Logs Recovered 14 | . . . . 1 . . 1 1 . 1 . 2 1 2 2 . 1 2 . . . . . . . . . . . Drone Launches 16 | . . . . . . . . . . . . . . . 2 . . . . . . . . . 10 . . . 4 Drone Recoveries . | . . . . . . . . . . . . . . . . . . . . . . . . . . . . . . Exploration | -11 -10 -10 -9 -9 -8 -7 -7 -7 -7 -6 -6 -6 -6 -6 -5 -5 -5 -5 -5 -4 -4 -4 -4 -4 -4 -3 -3 -2 -1 ------------- Run | Scr Mat Min Mat Min Mat Fac Low Low Dat Pro Fac Low Low Zio Pro Fac Upp Upp Zhi Pro Fac Ext Cet Arc Hub Res Qua Res Acc Turns Passed 9509 | 93 304 419 497 315 322 15 760 444 30 252 282 447 351 367 574 213 297 432 78 197 153 558 329 65 168 450 307 154 636 Spaces Moved 14802 | 28 236 342 355 444 355 41 1259 797 82 457 355 682 751 1038 839 404 536 978 157 359 229 605 430 52 230 910 553 351 947 Core 69 | . . . . . . . 9 14 . . . . . . . . . . . . . 42 . . . . . 4 . Treads . | . . . . . . . . . . . . . . . . . . . . . . . . . . . . . . Legs 1 | 1 . . . . . . . . . . . . . . . . . . . . . . . . . . . . . Wheels 627 | 27 236 342 22 . . . . . . . . . . . . . . . . . . . . . . . . . . Hover 504 | . . . 333 169 2 . . . . . . . . . . . . . . . . . . . . . . . . Flight 13601 | . . . . 275 353 41 1250 783 82 457 355 682 751 1038 839 404 536 978 157 359 229 563 430 52 230 910 553 347 947 Fastest Speed 25 | 80 80 80 65 37 37 37 37 37 37 37 37 37 34 34 34 29 29 29 29 29 29 29 29 29 29 29 29 29 25 Average Speed 35 | 81 80 80 65 48 37 37 37 38 37 37 37 37 34 34 34 31 29 29 29 29 29 33 29 29 29 29 29 29 27 Slowest Speed 125 | 120 80 80 80 125 60 37 100 100 37 37 117 37 120 34 34 34 29 29 29 29 29 100 29 29 29 29 29 100 104 Overloaded Moves . | . . . . . . . . . . . . . . . . . . . . . . . . . . . . . . Propulsion Burnouts . | . . . . . . . . . . . . . . . . . . . . . . . . . . . . . . Robots Hopped 11 | . . . . 1 . . 1 . . . . . . . . . . . . . . 4 . . . . 1 . 4 Cave-ins Triggered . | . . . . . . . . . . . . . . . . . . . . . . . . . . . . . . Exploration Rate (%) 54 | 3 47 70 40 70 43 2 96 86 62 56 7 76 81 89 77 13 65 86 63 81 11 80 89 76 33 29 61 13 42 Regions Visited 29 Branch Regions 19 Pre-discovered Areas 10 | . 1 . . . . . . . 1 . . 1 . 2 1 . . 1 3 . . . . . . . . . . Known Exits Taken 28 | . 1 1 1 1 1 1 1 1 1 1 1 1 1 1 1 1 1 1 1 1 1 1 1 1 1 1 1 1 . Unknown Exits Taken 1 | 1 . . . . . . . . . . . . . . . . . . . . . . . . . . . . . Scrap Searched 31 | . . 2 . 3 . . 3 3 . 4 . 2 3 2 5 . 1 1 . 2 . . . . . . . . . Spaces Dug 128 | . . . . . . . 1 . . 3 5 1 . . 5 5 3 2 . . 9 5 6 8 6 20 12 11 26 Terrain Destroyed 877 | . . . 14 . . . 54 12 . 3 5 1 13 . 25 5 24 40 . 18 41 59 37 19 364 40 38 14 51 Melee 128 | . . . . . . . 1 . . 3 5 1 . . 5 5 3 2 . . 9 5 6 8 6 20 12 11 26 Projectile 139 | . . . . . . . . . . . . . . . . . . . . . 7 26 15 11 30 20 26 3 1 AOE 610 | . . . 14 . . . 53 12 . . . . 13 . 20 . 21 38 . 18 25 28 16 . 328 . . . 24 Actions | -11 -10 -10 -9 -9 -8 -7 -7 -7 -7 -6 -6 -6 -6 -6 -5 -5 -5 -5 -5 -4 -4 -4 -4 -4 -4 -3 -3 -2 -1 --------- Run | Scr Mat Min Mat Min Mat Fac Low Low Dat Pro Fac Low Low Zio Pro Fac Upp Upp Zhi Pro Fac Ext Cet Arc Hub Res Qua Res Acc Total 17274 | 66 284 416 488 521 472 40 1453 885 81 518 452 792 814 1050 1018 459 625 1072 179 414 277 838 545 77 277 1029 617 373 1142 Wait 647 | 17 3 6 20 40 23 . 28 38 . 31 34 28 21 3 27 31 20 58 5 5 3 99 32 9 1 25 . 1 39 Move 14751 | 27 235 341 354 441 354 40 1256 796 81 456 354 681 750 1037 838 403 535 977 156 358 228 596 429 51 229 909 551 350 938 Hop 11 | . . . . 1 . . 1 . . . . . . . . . . . . . . 4 . . . . 1 . 4 Pick Up 50 | 1 . 2 1 2 5 . 8 . . 1 5 1 2 2 3 2 . . 1 2 1 1 . . 1 5 1 1 2 Fast Attach 87 | 5 1 3 2 6 8 . 7 1 . 3 3 2 5 1 . 3 . . 4 1 3 2 5 . . 4 9 . 9 Attach 4 | . . . . . 2 . . . . . . 2 . . . . . . . . . . . . . . . . . Detach 12 | . 1 . . 2 2 . 2 . . . . 2 1 . . . . . . . . 1 . . . 1 . . . Swap 84 | . 1 3 4 1 7 . 7 3 . 3 3 5 . 1 6 1 7 3 2 6 2 4 4 . . 3 2 . 6 Drop 111 | 1 . 6 4 4 10 . 12 1 . 3 6 2 4 3 3 4 1 . 3 2 3 3 5 . 1 10 8 1 11 Fire 662 | 15 33 37 70 11 35 . 42 26 . 9 22 42 14 3 46 10 21 20 3 10 11 47 30 5 20 15 18 2 45 Melee 180 | . . . . . . . 6 . . 7 5 3 . . 5 5 3 4 5 7 9 5 11 8 6 21 21 11 38 Ram 1 | . . . . . . . . . . . . . . . . . . . . . . . . . . . 1 . . Kick . | . . . . . . . . . . . . . . . . . . . . . . . . . . . . . . Crush . | . . . . . . . . . . . . . . . . . . . . . . . . . . . . . . Escape Stasis . | . . . . . . . . . . . . . . . . . . . . . . . . . . . . . . Rewire 112 | . . 1 . . . . 42 1 . . . . . . 39 . . . . . . 29 . . . . . . . Trap . | . . . . . . . . . . . . . . . . . . . . . . . . . . . . . . Miscellaneous 562 | . 10 17 33 13 26 . 42 19 . 5 20 24 17 . 51 . 38 10 . 23 17 47 29 4 19 36 5 7 50 Route ------- -11/Scrapyard -10/Materials (discovered 3 exits: *Mat / *Min x2) -10/Mines (discovered 3 exits: *Mat x2 / [Exi]) -9/Materials (discovered 2 exits: *Mat / *Min) -9/Mines (discovered 2 exits: *Mat x2) -8/Materials -7/Factory -7/Lower Caves -7/Lower Caves (discovered 2 exits: *Fac / *Dat) -7/Data Miner -6/Proximity Caves -6/Factory (discovered 2 exits: Fac / *Low) -6/Lower Caves -6/Lower Caves -6/Zion -5/Proximity Caves -5/Factory (discovered 4 exits: Fac x3 / *Upp) -5/Upper Caves -5/Upper Caves -5/Zhirov -4/Proximity Caves -4/Factory (discovered 6 exits: *Res / Upp x2 / *Ext x2 / Arm) -4/Extension (discovered 3 exits: *Res x2 / *Cet) -4/Cetus (discovered 3 exits: *Res x2 / *Arc) -4/Archives (discovered 2 exits: *Hub x2) -4/Hub_04(d) -3/Research (discovered 4 exits: *Res x2 / *Qua x2) -3/Quarantine -2/Research -1/Access (discovered 2 exits: *Sur / [Com]) Tau Ceti IV Orbit History --------- Turn | Location | Event 1 | -11/Scrapyard | Discovered new exit (range 1) 5 | -11/Scrapyard | Upgraded with Propulsion slot (x1) 5 | -11/Scrapyard | Upgraded with Utility slot (x1) 5 | -11/Scrapyard | Upgraded with Weapon slot (x1) 94 | -11/Scrapyard | Entered Materials 102 | -10/Materials | Identified exit to Mines 155 | -10/Materials | Discovered new exit (range 17) 249 | -10/Materials | Core integrity fell below 50% 322 | -10/Materials | Build established: Mutant 398 | -10/Materials | Entered Mines 400 | -10/Mines | Reached level 2 438 | -10/Mines | Upgraded with Utility slot (x1) 508 | -10/Mines | Joined a pair of Derelicts in attacking an 0b10 outpost 516 | -10/Mines | Discovered new exit (range 15) 588 | -10/Mines | Discovered new exit (range 6) 734 | -10/Mines | Build established: Scavenger-Skirmisher 742 | -10/Mines | Received a Rocket Launcher from a helpful Derelict 759 | -10/Mines | Discovered new exit (range 12) 816 | -10/Mines | Identified exit to Materials 817 | -10/Mines | Entered Materials 819 | -9/Materials | Reached level 3 861 | -9/Materials | Reached level 4 1042 | -9/Materials | Discovered new exit (range 16) 1053 | -9/Materials | Identified exit to Materials 1159 | -9/Materials | Build established: Scavenger-Scout 1176 | -9/Materials | Reached level 5 1228 | -9/Materials | Discovered new exit (range 15) 1237 | -9/Materials | Identified exit to Mines 1314 | -9/Materials | Entered Mines 1316 | -9/Mines | Discovered exit to Materials (range 5) 1387 | -9/Mines | Learned Materials stockpile data 1406 | -9/Mines | Found a damaged Exp. Sensor Array with a note attached 1408 | -9/Mines | Upgraded with Utility slot (x1) 1409 | -9/Mines | Found Prototype Device 1409 | -9/Mines | Identified Exp. Sensor Array 1452 | -9/Mines | Met a Derelict shopkeep closing up shop 1474 | -9/Mines | Reached level 6 1484 | -9/Mines | Upgraded with Power slot (x1) 1487 | -9/Mines | Discovered exit to Materials (range 10) 1496 | -9/Mines | Assembled infested the area 1501 | -9/Mines | Assisted by a Guerilla fighting off Assembled 1629 | -9/Mines | Entered Materials 1629 | -8/Materials | Accompanied by 2 allies 1631 | -8/Materials | Reached level 7 1634 | -8/Materials | Led the pair of lost Derelicts to an unsafe place 1763 | -8/Materials | Build established: Scout 1807 | -8/Materials | Upgraded with Weapon slot (x1) 1868 | -8/Materials | Reached level 8 1876 | -8/Materials | Discovered new exit (range 13) 1951 | -8/Materials | Identified exit to Factory 1951 | -8/Materials | Entered Factory 1953 | -7/Factory | Reached level 9 1955 | -7/Factory | Discovered new exit (range 11) 1959 | -7/Factory | Identified exit to Lower Caves 1966 | -7/Factory | Entered Lower Caves 1981 | -7/Lower Caves | Reached level 10 2014 | -7/Lower Caves | Attacked by a faux Warlord 2016 | -7/Lower Caves | Core integrity fell below 50% 2165 | -7/Lower Caves | Encountered a Warlord checkpoint 2198 | -7/Lower Caves | Upgraded with Utility slot (x1) 2254 | -7/Lower Caves | Learned 8 Factory zone layouts 2265 | -7/Lower Caves | Learned location of 1 exit from Factory 2273 | -7/Lower Caves | Attacked by a delusional Derelict stockpiling Unaware 2275 | -7/Lower Caves | Discovered new exit (range 20) 2467 | -7/Lower Caves | Build established: Scavenger-Scout 2554 | -7/Lower Caves | Upgraded with Utility slot (x1) 2726 | -7/Lower Caves | Identified exit to Lower Caves 2726 | -7/Lower Caves | Entered another Lower Caves area 2726 | -7/Lower Caves | Accompanied by 4 allies 2731 | -7/Lower Caves | Discovered new exit (range 19) 2745 | -7/Lower Caves | Identified exit to Factory 2826 | -7/Lower Caves | Attracted the attention of an 0b10 outpost 2833 | -7/Lower Caves | Reached level 11 2970 | -7/Lower Caves | Encountered a Warlord checkpoint 3017 | -7/Lower Caves | Learned 4 Factory zone layouts 3085 | -7/Lower Caves | Reached level 12 3093 | -7/Lower Caves | Discovered new exit (range 12) 3138 | -7/Lower Caves | Spotted B-75 Beast 3169 | -7/Lower Caves | Identified exit to Data Miner 3170 | -7/Lower Caves | Entered Data Miner 3170 | -7/Data Miner | Discovered new exit (range 6) 3178 | -7/Data Miner | Met Data Miner 3185 | -7/Data Miner | Learned location of Section 7 (-3) 3185 | -7/Data Miner | Acquired the access code to Warlord's prototype stash 3190 | -7/Data Miner | Received God Mode back door access code from Data Miner 3200 | -7/Data Miner | Identified exit to Proximity Caves 3200 | -7/Data Miner | Entered Proximity Caves 3202 | -6/Proximity Caves | Reached level 13 3228 | -6/Proximity Caves | Escorted by Enhanced Grunt 3363 | -6/Proximity Caves | Discovered exit to Factory (range 15) 3368 | -6/Proximity Caves | Learned Factory garrison access intel 3403 | -6/Proximity Caves | Upgraded with Utility slot (x1) 3452 | -6/Proximity Caves | Entered Factory 3452 | -6/Factory | Accompanied by 1 ally 3453 | -6/Factory | Identified exit to Lower Caves 3454 | -6/Factory | Reached level 14 3455 | -6/Factory | Loaded intel: 4 garrison access locations 3497 | -6/Factory | Upgraded with Utility slot (x1) 3552 | -6/Factory | Reached level 15 3572 | -6/Factory | Core integrity fell below 50% 3644 | -6/Factory | Discovered new exit (range 20) 3651 | -6/Factory | Reached level 16 3734 | -6/Factory | Entered Lower Caves 3734 | -6/Lower Caves | Accompanied by 1 ally 3836 | -6/Lower Caves | Reached level 17 3885 | -6/Lower Caves | Learned Factory emergency access door positions 3897 | -6/Lower Caves | Found Alien Artifact 3897 | -6/Lower Caves | Identified Core Expander 3897 | -6/Lower Caves | Installed Core Expander, added new Weapon slot 3911 | -6/Lower Caves | Learned Research terminal intel 3911 | -6/Lower Caves | Learned Factory garrison access intel 4085 | -6/Lower Caves | Learned location of 1 exit from Factory 4148 | -6/Lower Caves | Discovered new exit (range 7) 4181 | -6/Lower Caves | Identified exit to Lower Caves 4181 | -6/Lower Caves | Entered another Lower Caves area 4229 | -6/Lower Caves | Build established: Hauler-Scout 4252 | -6/Lower Caves | Learned location of 1 exit from Factory 4276 | -6/Lower Caves | Upgraded with Propulsion slot (x1) 4471 | -6/Lower Caves | Discovered new exit (range 8) 4474 | -6/Lower Caves | Identified exit to Zion 4532 | -6/Lower Caves | Entered Zion 4534 | -6/Zion | Reached level 18 4544 | -6/Zion | Build established: Derelict-Scout 4548 | -6/Zion | Discovered new exit (range 15) 4586 | -6/Zion | System corruption cleaned by Quarantine Array 4636 | -6/Zion | Received a visual enhancement algorithm 4658 | -6/Zion | Learned Factory emergency access door positions 4703 | -6/Zion | Learned Factory stockpile data 4757 | -6/Zion | Given A8's code to call for help 4770 | -6/Zion | Learned location of Armory (-4) 4899 | -6/Zion | Identified exit to Proximity Caves 4899 | -6/Zion | Entered Proximity Caves 4974 | -5/Proximity Caves | Attracted the attention of an 0b10 checkpoint 4979 | -5/Proximity Caves | Reached level 19 5048 | -5/Proximity Caves | Attracted the attention of an 0b10 outpost 5091 | -5/Proximity Caves | Destroyed 7 combat bots 5253 | -5/Proximity Caves | Reached level 20 5257 | -5/Proximity Caves | Spotted B-75 Beast 5285 | -5/Proximity Caves | Destroyed B-75 Beast 5344 | -5/Proximity Caves | Discovered new exit (range 17) 5418 | -5/Proximity Caves | Learned 12 Factory zone layouts 5471 | -5/Proximity Caves | Identified exit to Factory 5473 | -5/Proximity Caves | Entered Factory 5473 | -5/Factory | Accompanied by 2 allies 5474 | -5/Factory | Identified exit to Factory 5475 | -5/Factory | Reached level 21 5478 | -5/Factory | Loaded intel: 4 garrison access locations 5484 | -5/Factory | Upgraded with Utility slot (x1) 5510 | -5/Factory | Incoming investigation squad redirected 5515 | -5/Factory | Incoming investigation squad redirected 5590 | -5/Factory | Fabricated Exp. Cesium-ion Thruster (x1) 5630 | -5/Factory | Discovered new exit (range 8) 5633 | -5/Factory | Identified exit to Upper Caves 5686 | -5/Factory | Entered Upper Caves 5686 | -5/Upper Caves | Accompanied by 3 allies 5694 | -5/Upper Caves | Core integrity fell below 50% 5767 | -5/Upper Caves | Reached level 22 5818 | -5/Upper Caves | Destroyed 8 combat bots 5897 | -5/Upper Caves | Build established: Hauler-Scout 5900 | -5/Upper Caves | Learned Factory machine intel 5961 | -5/Upper Caves | Discovered new exit (range 15) 5965 | -5/Upper Caves | Identified exit to Upper Caves 5980 | -5/Upper Caves | Spotted B-75 Beast 5983 | -5/Upper Caves | Entered another Upper Caves area 5983 | -5/Upper Caves | Accompanied by 3 allies 6334 | -5/Upper Caves | Discovered new exit (range 7) 6339 | -5/Upper Caves | Identified exit to Zhirov 6415 | -5/Upper Caves | Entered Zhirov 6415 | -5/Zhirov | Accompanied by 3 allies 6415 | -5/Zhirov | Discovered new exit (range 3) 6421 | -5/Zhirov | Met Zhirov 6427 | -5/Zhirov | Learned location of Quarantine (-3) 6427 | -5/Zhirov | Learned location of Testing (-2) 6427 | -5/Zhirov | Learned location of Command (-1) 6432 | -5/Zhirov | Zhirov requested help retrieving the SGEMP Prototype 6437 | -5/Zhirov | Found Alien Artifact 6437 | -5/Zhirov | Identified Integrated Dissipator 6437 | -5/Zhirov | Installed Integrated Dissipator, increased core heat dissipation (+2%) 6469 | -5/Zhirov | Found Alien Artifact 6488 | -5/Zhirov | Identified exit to Proximity Caves 6493 | -5/Zhirov | Entered Proximity Caves 6493 | -4/Proximity Caves | Accompanied by 3 allies 6495 | -4/Proximity Caves | Reached level 23 6521 | -4/Proximity Caves | Spotted B-86 Titan 6537 | -4/Proximity Caves | Destroyed 7 combat bots 6572 | -4/Proximity Caves | Upgraded with Utility slot (x1) 6676 | -4/Proximity Caves | Discovered exit to Factory (range 8) 6677 | -4/Proximity Caves | Reached level 24 6690 | -4/Proximity Caves | Entered Factory 6690 | -4/Factory | Accompanied by 1 ally 6691 | -4/Factory | Identified exit to Armory 6693 | -4/Factory | Loaded intel: 251 machine locations 6723 | -4/Factory | Identified exit to Upper Caves 6723 | -4/Factory | Identified exit to Extension 6741 | -4/Factory | Incoming investigation squad redirected 6766 | -4/Factory | Discovered new exit (range 10) 6785 | -4/Factory | Identified exit to Research 6793 | -4/Factory | Central database locked down 6827 | -4/Factory | Upgraded with Utility slot (x1) 6843 | -4/Factory | Entered Extension 6845 | -4/Extension | Reached level 25 6857 | -4/Extension | Disrupted transfer network 6962 | -4/Extension | Rescued a captive Derelict 6963 | -4/Extension | Rescued a captive Derelict 6966 | -4/Extension | Rescued a captive Derelict 6966 | -4/Extension | Central database locked down 6967 | -4/Extension | Rescued a captive Derelict 6977 | -4/Extension | Rescued a captive Derelict 6991 | -4/Extension | Spotted B-86 Titan 6992 | -4/Extension | Spotted B-86 Titan 7009 | -4/Extension | Discovered exit to Research (range 18) 7011 | -4/Extension | Core integrity fell below 50% 7011 | -4/Extension | Destroyed B-86 Titan 7031 | -4/Extension | Allies destroyed B-86 Titan 7093 | -4/Extension | First assault squad dispatched 7115 | -4/Extension | Energy Cycler disabled 7117 | -4/Extension | Rescued a captive Derelict 7224 | -4/Extension | Rescued A7 7224 | -4/Extension | Reached level 26 7311 | -4/Extension | Discovered exit to Research (range 10) 7312 | -4/Extension | Discovered new exit (range 6) 7315 | -4/Extension | Identified exit to Cetus 7401 | -4/Extension | Entered Cetus 7401 | -4/Cetus | Accompanied by 15 allies 7406 | -4/Cetus | Acquired a Cetus Manufacturing Module code from A7 7412 | -4/Cetus | Spotted Cetus Guard 7412 | -4/Cetus | Spotted Cetus Guard 7412 | -4/Cetus | Spotted Cetus Guard 7413 | -4/Cetus | Spotted Cetus Guard 7422 | -4/Cetus | Destroyed Cetus Guard 7425 | -4/Cetus | Allies destroyed Cetus Guard 7430 | -4/Cetus | Destroyed Cetus Guard 7432 | -4/Cetus | Allies destroyed Cetus Guard 7465 | -4/Cetus | Started Cetus Manufacturing Module 7490 | -4/Cetus | Manufactured an Enhanced Grunt 7515 | -4/Cetus | Manufactured an Enhanced Grunt 7540 | -4/Cetus | Manufactured an Enhanced Grunt 7550 | -4/Cetus | Discovered new exit (range 16) 7550 | -4/Cetus | Reached level 27 7563 | -4/Cetus | Identified exit to Archives 7565 | -4/Cetus | Manufactured an Enhanced Grunt 7565 | -4/Cetus | Build established: Commander-Scout 7585 | -4/Cetus | Discovered exit to Research (range 16) 7590 | -4/Cetus | Manufactured an Enhanced Grunt 7619 | -4/Cetus | Spotted Cetus Guard 7619 | -4/Cetus | Spotted Cetus Guard 7619 | -4/Cetus | Spotted Cetus Guard 7619 | -4/Cetus | Spotted Cetus Guard 7622 | -4/Cetus | Destroyed Cetus Guard 7628 | -4/Cetus | Destroyed Cetus Guard 7641 | -4/Cetus | Destroyed Cetus Guard 7651 | -4/Cetus | Destroyed Cetus Guard 7656 | -4/Cetus | Discovered exit to Research (range 17) 7658 | -4/Cetus | Met Revision 17 7730 | -4/Cetus | Entered Archives 7730 | -4/Archives | Accompanied by 18 allies 7742 | -4/Archives | Unable to access archive contents 7743 | -4/Archives | Discovered new exit (range 16) 7755 | -4/Archives | Unable to access archive contents 7755 | -4/Archives | Discovered new exit (range 17) 7764 | -4/Archives | Identified exit to Hub_04(d) 7795 | -4/Archives | Entered Hub_04(d) 7795 | -4/Hub_04(d) | Accompanied by 15 allies 7822 | -4/Hub_04(d) | Discovered exit to Research (range 17) 7824 | -4/Hub_04(d) | Garrison activated, responded to threat 7861 | -4/Hub_04(d) | Destroyed 8 combat bots 7900 | -4/Hub_04(d) | Reached level 28 7900 | -4/Hub_04(d) | Network Hub disabled 7900 | -4/Hub_04(d) | Spotted Lightning 7901 | -4/Hub_04(d) | Spotted Lightning 7903 | -4/Hub_04(d) | Spotted Lightning 7904 | -4/Hub_04(d) | Spotted Lightning 7906 | -4/Hub_04(d) | Spotted Lightning 7907 | -4/Hub_04(d) | Spotted Lightning 7908 | -4/Hub_04(d) | Spotted Lightning 7910 | -4/Hub_04(d) | Spotted Lightning 7911 | -4/Hub_04(d) | Spotted Lightning 7914 | -4/Hub_04(d) | Network Hub disabled 7961 | -4/Hub_04(d) | Spotted Lightning 7963 | -4/Hub_04(d) | Entered Research 7964 | -3/Research | Loaded intel: 20 terminal locations 7964 | -3/Research | Core integrity fell below 50% 8146 | -3/Research | Found Enh. Force Lance 8155 | -3/Research | Fabricated Exp. Targeting Computer? 8163 | -3/Research | Revision forces began assault on 0b10 8214 | -3/Research | Build established: Scavenger-Scout 8269 | -3/Research | Discovered new exit (range 12) 8270 | -3/Research | Identified exit to Quarantine 8272 | -3/Research | Discovered new exit (range 14) 8274 | -3/Research | Identified exit to Research 8369 | -3/Research | Found Hellfire Missile Launcher 8390 | -3/Research | Reached level 29 8390 | -3/Research | Met up with Revision 17++ 8413 | -3/Research | Entered Quarantine 8413 | -3/Quarantine | Accompanied by 2 allies 8415 | -3/Quarantine | Found Prototype Device 8415 | -3/Quarantine | Identified Exp. Focal Shield 8429 | -3/Quarantine | Scanned by Researcher 8492 | -3/Quarantine | Found Alien Artifact 8492 | -3/Quarantine | Identified Subatomic Replicator 8503 | -3/Quarantine | Upgraded with Utility slot (x1) 8564 | -3/Quarantine | Met incapacitated Sigix Warrior 8564 | -3/Quarantine | Lockdown squad dispatched 8582 | -3/Quarantine | Acquired the access code to the Sigix quarantine chamber 8613 | -3/Quarantine | Upgraded with Weapon slot (x1) 8614 | -3/Quarantine | Found Alien Slashing Weapon 8614 | -3/Quarantine | Identified Sigix Broadsword 8650 | -3/Quarantine | Cryocooling Duct disabled 8656 | -3/Quarantine | Cryocooling Duct disabled 8663 | -3/Quarantine | First assault squad dispatched 8665 | -3/Quarantine | Ambient heat levels rising (+20) 8665 | -3/Quarantine | Non-combat units ordered to evacuate 8669 | -3/Quarantine | Found Alien Artifact 8669 | -3/Quarantine | Identified Terrabomb 8669 | -3/Quarantine | Used Terrabomb 8671 | -3/Quarantine | Ambient heat levels rising (+20) 8671 | -3/Quarantine | Combat units ordered to evacuate 8712 | -3/Quarantine | Central database locked down 8720 | -3/Quarantine | Entered Research 8722 | -2/Research | Reached level 30 8868 | -2/Research | Discovered new exit (range 4) 8869 | -2/Research | Identified exit to Access 8874 | -2/Research | Entered Access 8876 | -1/Access | Reached level 31 8876 | -1/Access | Reached level 32 9051 | -1/Access | Fabricated Assault Drone Bay? 9103 | -1/Access | Upgraded with Utility slot (x1) 9208 | -1/Access | Reached level 33 9356 | -1/Access | Core integrity fell below 50% 9374 | -1/Access | First assault squad dispatched 9392 | -1/Access | Discovered new exit (range 17) 9403 | -1/Access | Incoming assault squad redirected 9406 | -1/Access | Identified exit to Surface 9427 | -1/Access | Spotted B-99 Colossus 9428 | -1/Access | Spotted B-99 Colossus 9432 | -1/Access | Core integrity fell below 20% 9510 | -1/Access | Reached level 34 9510 | *** | Destroyed 0B10! Last Messages --------------- 09475_ Slug penetrates Reinforced Barrier. 09475_ Slug penetrates Sealed Heavy Doors. 09477_ Dropped Protomatter-96. 09479_ M6I WV8R7ZYM8QDM&XUFVKGL7GSNMTYGKB|E1Y9H 09489_ Used Protomatter to restore core integrity (+288, depleted) 09497_ Sealed Barrier breached. 09498_ System corrupted: Matter fused (-7). 09505_ Connecting with Terminal... >>Trojan(Botnet) Trojan loaded successfully. Testing... Terminal linked with 2 systems. Awaiting botnet instructions. 09508_ Drone sends a signal. Sealed Heavy Doors opened remotely. 09509_ Penetrated by Slug. 09509_ Slug penetrates Reinforced Barrier. 09509_ Slug penetrates Main Access Shell. Sealed Barrier opened remotely. 09510_ Reached level 34. Map ----- +----------------------------------------------------+ | ????????????????????????????????o????????????????? | | ?????????????????????????????????????????????????? | | ?????????????????????????????????????????????????? | | ????????????????????????????????????????????????t? | | ?????????????????????????????????????????????????? | | ?????????????????????????????? ??????????????????? | | ?????t???????????????????### ? ##?#???????????? | | ???????????????????????##### ##?##????#?????? | | ????????????????????#######? ?#######????? #? | | ???????????????????k###??#?# ########????? ? | | ?????????????????#? ###?####? ? ########## ?? | | ???????????????? ? ###?#################### # | | ???????????????? ##########?############# # | | ??????????????######?###################?### # | | ??????????????###############?#?############ #? | | ?????????????#####?######################### ## | | ?????????????#??#########?####?############# ## | | ?????????????#########?##############?#?#### ^ #? | | ??????????# ########?####?##########?###### ## | | ??????????# #######"####################### | | ??????????# """T""" ### | | ??????????# u""" """ ### | | ??????????# " """"" ### | | ??????????# " " ! BB | | ??????????# " " "" "[ n BB | | ??????????# " " @" ! | | ??????????# " " == * | | ??????????# " """"""! ! !BB ;#"#+#### | | ??????????# " ? [ %[=BB # | | ??????????# " # | | ??????????# #######"##################### | | ??????????# ###########?################# | | ??????????# ?####?########?####?#####??## | | ??????????# ##?################ # """" | | ??????????# ?################### # """""" | | ??????????+??#########?######### # """""" | | ??????????????###########?###### ? # """" | | ?????????????########## ####?####+?##### | | ????????????k?? ? ? + | | ??????????????#?####### ###?##### ###### ? | | o???????????????#####?############# ############?# | | ?????????????????#?################ ###?########## | | ????????????????????############### ?######?###?#? | | ????????????????????###############?#####???##?#?? | | ?????????????????????########?##### #####?###????? | | ???????????????????????? ?### ######?#?????# | | ???????????????????????? ???? ???#?# ? ??????? | | ????????????????????????????????#????????????????? | | ???????????Y?????????????????????????????????????? | | ?????????????????????????????????????????????????? | +----------------------------------------------------+ Best States ------------- Heat Dissipation 76 Energy Generation 36 Energy Capacity 415 Matter Stores 300 Matter Capacity 300 Sight Range 17 Robot Scan Range 43 Terrain Scan Range 20 Terrain Scan Density 710 Cloak Strength 3 Armor Coverage 150 Resistance: KI 5 Resistance: TH 5 Resistance: EX 5 Phase Shifting 10 Evasion (%) 87 Targeting Accuracy 20 Target Analysis 8 Core Analysis 10 Armor Integrity Analysis 33 Kinecelleration 40 Offensive Hacking 5 Defensive Hacking 5 Item Schematics ----------------- Combat Drone Bay | -7/Data Miner | Free Lgt. Regenerative Plating | -7/Data Miner | Free Exp. Flexi-carbon Leg | -7/Data Miner | Free Exp. Cesium-ion Thruster | -7/Data Miner | Free Exp. Targeting Computer | -7/Data Miner | Free Tactical Coordination Suite | -7/Data Miner | Free Mni. Smartbomb Launcher | -7/Data Miner | Free Plasma Sword | -7/Data Miner | Free Kinetic Spear | -7/Data Miner | Free Assault Drone Bay | -5/Zhirov | Free Exp. Heat Sink | -5/Zhirov | Free Exp. Optical Array | -5/Zhirov | Free Imp. Arc Thrower | -5/Zhirov | Free Robot Schematics ------------------ S-27 Virus | -7/Data Miner | Free G-50 Soldier | -7/Data Miner | Free G-67 Veteran | -7/Data Miner | Free L-41 Fighter | -7/Data Miner | Free I-36 Angel | -7/Data Miner | Free Fabricated ------------ Exp. Cesium-ion Thruster | x1 | -5/Factory Exp. Targeting Computer | x1 | -3/Research Assault Drone Bay | x1 | -1/Access Alien Tech Used ----------------- Core Expander Integrated Dissipator Subatomic Replicator Sigix Broadsword Terrabomb Achievements -------------- None Challenges ------------ None RPGLIKE | -11 -10 -10 -9 -9 -8 -7 -7 -7 -7 -6 -6 -6 -6 -6 -5 -5 -5 -5 -5 -4 -4 -4 -4 -4 -4 -3 -3 -2 -1 --------- Run | Scr Mat Min Mat Min Mat Fac Low Low Dat Pro Fac Low Low Zio Pro Fac Upp Upp Zhi Pro Fac Ext Cet Arc Hub Res Qua Res Acc Levels Raised 33 | . . 1 3 1 2 1 1 2 . 1 3 1 . 1 2 1 1 . . 2 . 2 1 . 1 1 . 1 4 XP Earned 53219 | 3000 1090 1450 3914 1222 3434 1500 1565 2389 650 1610 3747 1842 920 421 3848 1197 983 698 220 1878 1179 2209 1300 253 1113 1510 1071 1644 5362 XP Spent 46145 | 2950 . 1550 320 2900 3950 . 3100 . . 2000 4550 . 800 . . 2600 600 . 2000 5390 3200 . . . . . 4600 515 5120 Upgrades 69 | 9 . 2 3 4 4 . 2 . . 1 3 . 1 . . 1 1 . 1 17 1 . . . . . 2 4 13 Power Slot 1 | . . . . 1 . . . . . . . . . . . . . . . . . . . . . . . . . Propulsion Slot 2 | 1 . . . . . . . . . . . . 1 . . . . . . . . . . . . . . . . Utility Slot 12 | 1 . 1 . 1 . . 2 . . 1 1 . . . . 1 . . . 1 1 . . . . . 1 . 1 Weapon Slot 3 | 1 . . . . 1 . . . . . . . . . . . . . . . . . . . . . 1 . . Core Integrity 13 | . . . . . . . . . . . . . . . . . . . . 3 . . . . . . . . 10 Heat Dissipation 2 | . . . 2 . . . . . . . . . . . . . . . . . . . . . . . . . . Mass Support 6 | 1 . . 1 1 1 . . . . . 1 . . . . . 1 . . . . . . . . . . . . Inventory Capacity 8 | 2 . 1 . 1 2 . . . . . 1 . . . . . . . 1 . . . . . . . . . . Sight Range 1 | . . . . . . . . . . . . . . . . . . . . 1 . . . . . . . . . Sensor Range 5 | . . . . . . . . . . . . . . . . . . . . 3 . . . . . . . 2 . Terrain Scan Density 7 | 1 . . . . . . . . . . . . . . . . . . . 2 . . . . . . . 2 2 Ranged Accuracy 2 | 1 . . . . . . . . . . . . . . . . . . . 1 . . . . . . . . . Hack Attack % 1 | . . . . . . . . . . . . . . . . . . . . 1 . . . . . . . . . Hack Defense % 1 | . . . . . . . . . . . . . . . . . . . . 1 . . . . . . . . . KI Resistance % 1 | 1 . . . . . . . . . . . . . . . . . . . . . . . . . . . . . TH Resistance % 1 | . . . . . . . . . . . . . . . . . . . . 1 . . . . . . . . . EX Resistance % 1 | . . . . . . . . . . . . . . . . . . . . 1 . . . . . . . . . KI Damage % 2 | . . . . . . . . . . . . . . . . . . . . 2 . . . . . . . . . Protomatter Created 6749 | . 113 120 252 71 142 . 401 403 . . 321 313 331 . 620 61 417 191 . 129 219 901 414 77 390 358 85 . 420 Integrity Restored 10981 | . 231 351 660 255 476 . 843 333 . 105 421 405 329 . 970 . 697 185 . 454 310 929 591 68 313 776 88 137 1054 Core 8703 | . 231 307 528 137 328 . 672 219 . 64 348 304 265 . 773 . 538 162 . 355 216 708 423 43 305 589 73 110 1005 Parts 2278 | . . 44 132 118 148 . 171 114 . 41 73 101 64 . 197 . 159 23 . 99 94 221 168 25 8 187 15 27 49 Protomatter Decayed 4896 | . 36 . 90 188 39 . 28 559 . . 215 71 250 . 318 . 115 59 . . . 644 416 79 958 598 118 . 115 Game ------ Seed ReactiveIntegrationTreads Manual? 0 Play Time 05:23:10 Cumulative 350.0 hours Start 2020.01.03 @ 13:15:03 End 2020.01.05 @ 01:13:32 Sessions 11 Manual Loads 0 Difficulty Rogue Special Mode Winter2019/RPGLIKE Game No. 135 Rogue 135 Adventurer 0 Explorer 0 Win Type 3 Total 11 Types 8/1/0/2/0/0/0 Lore% 86 Gallery% 84 Achievement% 66 Wizard Run 0 Options --------- ASCII 0 Keyboard 0 Movement Numpad Keybinds 0 Fullscreen 0 Font 14/Dina Map View 76x50 Tactical HUD 1 Map Filters NONE Filters NONE Steam 1 RUN: ce1bc7cb-c0c6-4511-89f1-8b07ee3bf99f